bitfinex-derivatives/quotes_SOLF0:USTF0_20250228
["timestamp","ask_amount","ask_price","bid_price","bid_amount"]
[1740771140528,5.6054,146.96,146.81,8.8218]
[1740771140731,5.6054,146.96,146.94,6.8065]
[1740771141431,5.6054,146.96,146.89,13.16]
[1740771141835,0.04311434,146.94,146.91,0.02036405]
[1740771143533,0.04311434,146.94,146.93,6.8071]
[1740771144128,1.434e-05,146.94,146.93,6.8071]
[1740771157347,1.434e-05,146.94,146.93,10.2071]
[1740771157547,1.434e-05,146.94,146.93,6.8071]
[1740771158151,1.434e-05,146.94,146.93,10.2071]
[1740771160652,5.434e-05,147.02,147.01,6.8034]
[1740771168463,1.286e-05,147.03,147.02,6.803]
[1740771168955,1.286e-05,147.03,147.02,10.203]
[1740771169548,1.286e-05,147.03,147.02,202.203]
[1740771169753,103.13500351,147.21,147.03,13.6042]
[1740771169954,103.13500351,147.21,147.04,2.60956422]
[1740771170150,103.13500351,147.21,147.06,20.5]
[1740771170356,80.75090351,147.21,147.07,2.60928676]
[1740771170556,27.55390351,147.21,147.08,2.6091943]
[1740771170759,27.55390351,147.21,147.2,6.7947]
[1740771170949,27.55390351,147.21,147.2,19.9347]
[1740771171354,27.55390351,147.21,147.2,6.7947]
[1740771171653,27.55390351,147.21,147.2,19.9347]
[1740771172050,27.55390351,147.21,147.2,13.14]
[1740771173457,27.55390351,147.21,147.2,19.9347]
[1740771173657,113.69167839,147.22,147.2,13.14]
[1740771174264,0.04488278,147.22,147.2,13.14]
[1740771174862,0.04488278,147.22,147.21,6.7942]
[1740771175262,1.8423,147.28,147.24,6.7927]
[1740771176158,1.8423,147.28,147.2,13.14]
[1740771176457,0.0466173,147.27,147.25,0.04600616]
[1740771176854,3.4466173,147.27,147.14,16.8244]
[1740771177059,1.8423,147.28,147.14,16.8244]
[1740771177857,6.792,147.26,147.18,6.7951]
[1740771178158,0.04676529,147.22,147.2,0.04949076]
[1740771179366,0.04676529,147.22,147.14,13.14]
[1740771179561,0.04676529,147.22,147.16,6.7964]
[1740771180472,0.04676529,147.22,147.18,0.05136294]
[1740771181373,0.04676529,147.22,147.09,1.35971174]
[1740771181672,13.12,147.25,147.1,13.12]
[1740771181861,13.12,147.25,147.09,1.35971174]
[1740771182066,13.12,147.25,147.1,13.12]
[1740771182471,0.04844331,147.19,147.1,13.12]
[1740771182667,13.12,147.25,147.1,13.12]
[1740771182868,0.04950947,147.19,147.1,13.12]
[1740771183074,13.12,147.25,147.1,13.12]
[1740771183268,0.043565,147.16,147.1,13.12]
[1740771183467,0.04407867,147.14,147.1,13.12]
[1740771183668,13.12,147.25,147.1,13.12]
[1740771184172,6.7945,147.21,147.16,6.7961]
[1740771184567,8.7031,147.2,147.16,6.7961]
[1740771184772,1.9520354,147.2,147.17,0.04945691]
[1740771184972,1.9081,147.2,147.1,13.12]
[1740771185169,1.7518,147.19,147.13,6.7975]
[1740771185473,1.7518,147.19,147.1,13.12]
[1740771186073,0.05202043,147.16,147.1,13.12]
[1740771186669,0.05202043,147.16,147.14,6.7971]
[1740771186868,0.05202043,147.16,147.1,13.12]
[1740771187069,0.05202043,147.16,147.06,3.6949]
[1740771187276,1.7518,147.19,147.12,6.798]
[1740771187568,1.7518,147.19,147.07,13.12]
[1740771187769,0.04635172,147.17,147.08,13.12]
[1740771187974,1.7518,147.19,147.08,13.12]
[1740771188166,6.8497594,147.14,147.1,6.7991]
[1740771189269,6.798,147.13,147.09,6.7996]
[1740771189773,6.798,147.13,147.1,6.7992]
[1740771190072,6.8495594,147.14,147.1,6.7992]
[1740771190669,0.0520594,147.14,147.1,6.7992]
[1740771190972,0.0520594,147.14,147.07,13.12]
[1740771191272,6.8498594,147.14,147.07,13.12]
[1740771191474,1.7513,147.13,147.07,13.12]
[1740771192573,0.0520594,147.14,147.07,13.12]
[1740771192969,0.0520594,147.14,147.13,6.7979]
[1740771196372,0.0520594,147.14,147.1,6.7988]
[1740771196674,0.0520594,147.14,147.07,13.12]
[1740771196875,0.0520594,147.14,147.13,6.7979]
[1740771197180,0.0520594,147.14,147.07,13.12]
[1740771198576,6.8497594,147.14,147.07,13.12]
[1740771198774,0.0520594,147.14,147.07,13.12]
[1740771199479,0.0520594,147.14,147.13,6.7979]
[1740771202479,0.0520594,147.14,147.07,13.12]
[1740771203576,6.8498594,147.14,147.07,13.12]
[1740771204575,6.7979,147.13,147.07,13.12]
[1740771204776,0.0520594,147.14,147.07,13.12]
[1740771205586,6.8497594,147.14,147.07,13.12]
[1740771205981,6.7982,147.13,147.09,6.7997]
[1740771206284,6.7982,147.13,147.07,13.12]
[1740771206487,0.0520594,147.14,147.07,13.12]
[1740771207081,0.0520594,147.14,147.13,6.7979]
[1740771207586,6.8495594,147.14,147.07,13.12]
[1740771207882,0.0520594,147.14,147.07,13.12]
[1740771208284,5.94e-05,147.14,147.09,0.04709135]
[1740771208487,5.94e-05,147.14,147.09,3.68979135]
[1740771208789,5.94e-05,147.14,147.13,6.7979]
[1740771209082,5.94e-05,147.14,147.13,19.9179]
[1740771216894,6.7979,147.13,147.12,34.41537506]
[1740771217088,6.7979,147.13,147.12,0.38159815]
[1740771217288,10.1979,147.13,147.12,0.38159815]
[1740771217990,6.7975594,147.14,147.12,0.38159815]
[1740771218594,3.4000594,147.14,147.05,74.41679149]
[1740771218788,14.9329,147.17,147.05,81.21799149]
[1740771219089,0.0495342,147.12,147.05,74.41679149]
[1740771219790,0.0495342,147.12,147.08,6.7998]
[1740771219986,0.0495342,147.12,147.05,74.41679149]
[1740771220392,0.0495342,147.12,147.11,6.7988]
[1740771221692,13.12,147.22,147.09,1.8488]
[1740771222098,13.12,147.22,147.1,1.8354]
[1740771222493,217.48,147.23,147.1,1.8354]
[1740771222798,0.04980929,147.17,147.15,0.05223222]
[1740771222993,217.48,147.23,147.15,0.05223222]
[1740771223200,0.04882935,147.17,147.15,0.05223222]
[1740771223499,0.04449948,147.17,147.15,0.05223222]
[1740771224996,0.04449948,147.17,147.15,6.84883222]
[1740771225296,0.04449948,147.17,147.15,0.05223222]
[1740771225490,0.04449948,147.17,147.15,6.84913222]
[1740771225892,0.04449948,147.17,147.15,0.05223222]
[1740771226806,0.04449948,147.17,147.16,6.7965]
[1740771226995,217.48,147.23,147.15,0.05223222]
[1740771227395,217.48,147.23,147.19,6.7948]
[1740771227591,13.12,147.24,147.19,6.7948]
[1740771228299,0.04820367,147.23,147.2,0.04867706]
[1740771229301,0.04820367,147.23,147.22,6.7937]
[1740771232396,0.04820367,147.23,147.2,0.04867706]
[1740771232397,234.34163041,147.36,147.2,0.04867706]
[1740771232596,81.5542446,147.33,147.2,3.5952]
[1740771232796,13.12,147.34,147.2,3.5952]
[1740771233102,1.17399264,147.33,147.2,3.5952]
[1740771233401,13.12,147.34,147.2,3.5952]
[1740771233596,0.04354052,147.28,147.25,0.04719297]
[1740771233801,6.7904,147.3,147.2,3.5952]
[1740771234002,0.05227397,147.28,147.25,0.04657054]
[1740771236200,6.7919,147.27,147.25,0.04657054]
[1740771236503,0.05227397,147.28,147.25,0.04657054]
[1740771236700,6.7919,147.26,147.25,0.04657054]
[1740771237303,6.7916,147.27,147.25,0.04657054]
[1740771237504,0.05227397,147.28,147.25,0.04657054]
[1740771241206,13.1,147.27,147.17,6.7959]
[1740771241403,13.1,147.27,147.15,1.8272]
[1740771241603,6.7936,147.23,147.15,1.8272]
[1740771242306,13.1,147.27,147.15,1.8272]
[1740771242508,0.04984786,147.2,147.18,0.04495976]
[1740771243006,0.05014214,147.2,147.18,0.04971288]
[1740771243910,6.7951,147.19,147.18,0.04971288]
[1740771246012,10.1951,147.19,147.18,1.288e-05]
[1740771247811,6.7951,147.19,147.18,1.288e-05]
[1740771248315,6.84514214,147.2,147.18,1.288e-05]
[1740771248517,0.05014214,147.2,147.18,1.288e-05]
[1740771249012,6.7951,147.19,147.18,1.288e-05]
[1740771249513,10.1951,147.19,147.18,1.288e-05]
[1740771252410,3.4,147.19,147.02,219.94358102]
[1740771252615,6.7996,147.1,147.05,10.3345]
[1740771252813,13.1,147.13,147.05,3.533]
[1740771253017,6.8011,147.06,147.03,1.8536]
[1740771253215,13.1,147.13,147.03,1.8536]
[1740771253622,0.05094324,147.09,147.07,0.04627364]
[1740771256720,6.85094324,147.09,147.07,0.04627364]
[1740771256921,0.05094324,147.09,147.07,0.04627364]
[1740771259124,6.85104324,147.09,147.07,0.04627364]
[1740771259624,0.05094324,147.09,147.07,0.04627364]
[1740771259828,6.8002,147.08,147.07,0.04627364]
[1740771260925,3.4,147.08,147.01,3.533]
[1740771261224,13.12,147.11,147.0,6.8038]
[1740771261419,13.12,147.11,146.99,1.8556]
[1740771261721,13.12,147.11,146.95,3.4906]
[1740771262023,191.1758273,147.1,146.95,3.4906]
[1740771262224,0.0455316,147.04,146.95,3.4906]
[1740771262524,13.12,147.05,146.95,3.4906]
[1740771262717,0.04382887,147.01,146.95,3.4906]
[1740771262920,0.04382887,147.01,146.98,6.8047]
[1740771263526,0.04382887,147.01,146.96,6.8056]
[1740771264021,6.8045,146.99,146.95,3.4906]
[1740771264425,6.8045,146.99,146.95,10.2966]
[1740771264825,0.04382887,147.01,146.93,1.8516]
[1740771265130,13.12,147.0,146.93,1.8516]
[1740771265434,6.8055,146.97,146.93,1.8516]
[1740771265730,0.04669113,146.98,146.93,1.8516]
[1740771266132,6.8055,146.97,146.93,1.8516]
[1740771266631,6.806,146.96,146.93,1.8516]
[1740771267229,6.8065,146.95,146.91,3.5826]
[1740771267632,0.05072918,146.94,146.91,3.5826]
[1740771268331,6.85742918,146.94,146.91,3.5826]
[1740771269026,6.8072,146.93,146.91,3.5826]
[1740771269427,0.05072918,146.94,146.89,1.7911]
[1740771269636,6.8086,146.9,146.85,1.8708]
[1740771270137,0.05070209,146.89,146.85,8.6814]
[1740771270338,0.05070209,146.89,146.85,1.8708]
[1740771270543,6.86000209,146.89,146.85,1.8708]
[1740771271536,0.05070209,146.89,146.85,1.8708]
[1740771272529,0.05070209,146.89,146.83,1.7634]
[1740771272731,0.05070209,146.89,146.82,1.8674]
[1740771273137,0.05070209,146.89,146.76,13.12]
[1740771273339,217.76,146.88,146.76,13.12]
[1740771273843,0.05119985,146.83,146.74,3.5611]
[1740771274234,6.8119,146.83,146.74,3.5611]
[1740771274542,0.05195046,146.8,146.74,3.5611]
[1740771275140,0.05195046,146.8,146.79,6.8136]
[1740771275339,13.12,146.84,146.74,3.5611]
[1740771275540,13.12,146.84,146.78,0.05194845]
[1740771276538,0.04780498,146.82,146.78,0.05194845]
[1740771277237,6.86030498,146.82,146.78,6.86594845]
[1740771277439,0.04780498,146.82,146.78,0.05194845]
[1740771277740,0.04780498,146.82,146.8,6.8131]
[1740771277941,0.04780498,146.82,146.78,0.05194845]
[1740771278239,230.88,146.88,146.81,6.8127]
[1740771278639,6.8109,146.85,146.81,6.8127]
[1740771279140,230.88,146.88,146.79,1.8487]
[1740771279442,0.04987672,146.84,146.82,0.04890957]
[1740771279643,13.12,146.91,146.79,14.9687]
[1740771280841,0.04408948,146.86,146.84,6.86076134]
[1740771281044,13.12,146.91,146.84,0.04976134]
[1740771281341,0.04894529,146.86,146.84,0.04976134]
[1740771281542,0.04728506,146.86,146.84,0.04976134]
[1740771281740,13.12,146.91,146.84,0.04976134]
[1740771282734,6.8108,146.85,146.84,0.04976134]
[1740771283135,0.04506873,146.86,146.84,0.04976134]
[1740771283346,13.12,146.91,146.84,0.04976134]
[1740771283542,0.05203643,146.86,146.84,0.04976134]
[1740771283841,0.05022552,146.86,146.84,0.04976134]
[1740771284544,6.86092552,146.86,146.84,0.04976134]
[1740771284744,0.05022552,146.86,146.84,0.04976134]
[1740771285145,0.05022552,146.86,146.85,6.8108]
[1740771287448,0.05022552,146.86,146.84,0.04976134]
[1740771288641,13.17022552,146.86,146.84,0.04976134]
[1740771288840,6.8108,146.85,146.84,0.04976134]
[1740771293648,6.8108,146.85,146.84,6.134e-05]
[1740771293848,10.2108,146.85,146.84,6.134e-05]
[1740771295153,6.8108,146.85,146.84,6.134e-05]
[1740771296656,10.2108,146.85,146.84,6.134e-05]
[1740771298949,228.4636,146.85,146.84,6.134e-05]
[1740771299256,6.8147,146.77,146.74,3.5611]
[1740771300358,6.85784268,146.77,146.74,3.60475852]
[1740771300560,0.04314268,146.77,146.74,3.60475852]
[1740771300752,13.12,146.82,146.74,3.60475852]
[1740771300950,6.813,146.81,146.76,6.8147]
[1740771301156,6.813,146.81,146.75,1.8495]
[1740771301553,6.813,146.81,146.77,6.8146]
[1740771301953,6.813,146.81,146.78,0.04823979]
[1740771301954,0.04609775,146.8,146.78,0.04823979]
[1740771303755,218.0,146.85,146.81,6.8127]
[1740771303955,218.0,146.85,146.75,1.8495]
[1740771304158,218.0,146.85,146.77,6.8145]
[1740771304858,0.04591916,146.82,146.8,0.04709455]
[1740771306055,6.85821916,146.82,146.8,0.04709455]
[1740771306359,0.04591916,146.82,146.8,0.04709455]
[1740771306851,13.14,146.81,146.8,0.04709455]
[1740771307048,13.14,146.81,146.72,0.25857]
[1740771307462,203.4361,146.81,146.72,0.25857]
[1740771307653,6.8154,146.76,146.72,0.25857]
[1740771307857,13.14,146.75,146.72,0.25857]
[1740771308058,13.14,146.75,146.72,0.30887619]
[1740771308357,13.14,146.79,146.72,0.30887619]
[1740771308555,13.14,146.83,146.72,0.25857]
[1740771309060,13.14,146.84,146.72,0.25857]
[1740771309265,13.14,146.84,146.8,6.8129]
[1740771309559,0.05035843,146.83,146.81,0.04917111]
[1740771309863,13.14,146.84,146.78,6.8138]
[1740771310066,0.04876403,146.83,146.81,0.04916325]
[1740771310361,13.14,146.84,146.79,6.8136]
[1740771310557,0.0433116,146.83,146.81,0.04302933]
[1740771310858,0.0987,146.91,146.82,6.8119]
[1740771311066,0.05078737,146.83,146.82,6.8119]
[1740771311267,13.14,146.88,146.81,0.04765921]
[1740771311562,0.04546179,146.84,146.83,6.8118]
[1740771311761,13.14,146.89,146.83,0.04426524]
[1740771311956,0.05077814,146.85,146.83,6.85596524]
[1740771312154,0.05077814,146.85,146.83,0.04426524]
[1740771313462,13.12,146.84,146.83,0.04426524]
[1740771313662,19.9313,146.84,146.83,0.04426524]
[1740771314364,16.52,146.84,146.75,3.5526]
[1740771314657,1.17814131,146.83,146.72,0.25857]
[1740771314863,6.8156,146.75,146.72,0.25857]
[1740771315163,19.9356,146.75,146.72,0.25857]
[1740771315366,13.16923401,146.75,146.72,0.30995473]
[1740771316362,0.04923401,146.75,146.72,0.30995473]
[1740771316562,13.12,146.8,146.72,0.30995473]
[1740771317264,6.8144,146.78,146.72,0.30995473]
[1740771317465,13.12,146.8,146.72,0.30995473]
[1740771317664,0.04348881,146.76,146.72,0.30995473]
[1740771319169,13.14,146.75,146.72,0.30995473]
[1740771319564,19.9556,146.75,146.72,0.30995473]
[1740771320164,6.8164,146.73,146.72,0.30995473]
[1740771320563,6.8164,146.73,146.72,5.473e-05]
[1740771322366,10.2164,146.73,146.72,5.473e-05]
[1740771322767,11.39536683,146.73,146.72,5.473e-05]
[1740771324371,4.57896683,146.73,146.59,37.13208581]
[1740771324565,409.29896683,146.72,146.58,1.73]
[1740771324871,191.17896683,146.71,146.58,1.73]
[1740771325070,14.31896683,146.7,146.58,1.73]
[1740771325273,1.17896683,146.69,146.58,1.73]
[1740771325768,0.05175101,146.65,146.62,0.04513551]
[1740771325969,13.14,146.64,146.62,0.04513551]
[1740771326171,6.8211,146.63,146.62,3.551e-05]
[1740771326867,13.14,146.64,146.62,3.551e-05]
[1740771327773,6.8211,146.63,146.62,3.551e-05]
[1740771329573,13.14,146.64,146.62,3.551e-05]
[1740771330173,6.8211,146.63,146.62,3.551e-05]
[1740771330768,10.2411,146.63,146.62,3.551e-05]
[1740771330974,11.42099274,146.63,146.62,3.551e-05]
[1740771332778,11.42131052,146.63,146.62,3.551e-05]
[1740771333773,18.54819848,146.63,146.62,3.551e-05]
[1740771334579,18.54823551,146.63,146.62,3.551e-05]
[1740771335883,11.42134755,146.63,146.62,3.551e-05]
[1740771336968,8.00134755,146.63,146.62,3.551e-05]
[1740771337173,21.14134755,146.63,146.62,3.551e-05]
[1740771337875,19.9611,146.63,146.62,3.551e-05]
[1740771338379,6.8211,146.63,146.62,3.551e-05]
[1740771338575,19.9611,146.63,146.62,3.551e-05]
[1740771338876,6.8207,146.64,146.62,3.551e-05]
[1740771339078,13.14,146.63,146.62,3.551e-05]
[1740771339483,6.87215101,146.65,146.62,3.551e-05]
[1740771339676,0.05175101,146.65,146.62,3.551e-05]
[1740771339877,13.14,146.67,146.62,3.551e-05]
[1740771340178,6.8184,146.69,146.62,6.82153551]
[1740771340479,6.8184,146.69,146.58,13.14]
[1740771340480,13.14,146.7,146.63,1.8765]
[1740771341074,6.8202,146.65,146.63,1.8765]
[1740771341276,0.05141231,146.68,146.63,1.8765]
[1740771341477,0.05141231,146.68,146.65,0.04683586]
[1740771341678,6.8197,146.66,146.65,0.04683586]
[1740771342579,0.05141231,146.68,146.65,0.04683586]
[1740771343686,13.14,146.69,146.65,0.04683586]
[1740771344080,7.88703,146.71,146.65,0.04683586]
[1740771344282,14.70473,146.71,146.65,0.04683586]
[1740771345184,0.04433139,146.69,146.65,6.86693586]
[1740771345387,14.70473,146.71,146.66,1.9075]
[1740771346381,14.70473,146.71,146.66,8.7271]
[1740771346783,0.05006236,146.7,146.66,8.7271]
[1740771347085,218.28,146.79,146.66,1.9075]
[1740771347284,1.17863261,146.78,146.66,1.9075]
[1740771347587,6.8148,146.77,146.73,6.8163]
[1740771348390,0.0486278,146.76,146.74,0.05092883]
[1740771349585,3.6575,146.85,146.74,0.05092883]
[1740771349883,14.31816729,146.84,146.74,6.8159]
[1740771350091,1.17816729,146.83,146.69,13.14]
[1740771350383,1.17816729,146.83,146.73,6.8161]
[1740771350589,6.8133,146.8,146.73,6.8161]
[1740771350791,6.8133,146.8,146.69,13.14]
[1740771350988,0.04714116,146.79,146.77,0.05098171]
[1740771351295,0.04645702,146.79,146.77,0.04731767]
[1740771351694,6.8141,146.78,146.77,0.04731767]
[1740771352289,0.04645702,146.79,146.77,0.04731767]
[1740771353491,6.86025702,146.79,146.77,0.04731767]
[1740771353691,0.04645702,146.79,146.77,0.04731767]
[1740771354696,6.8141,146.78,146.77,0.04731767]
[1740771355094,0.04645702,146.79,146.77,0.04731767]
[1740771358797,6.8167,146.73,146.71,1.8437]
[1740771359195,13.12,146.75,146.63,13.12]
[1740771359397,6.8169,146.72,146.66,6.8195]
[1740771359699,13.12,146.75,146.65,1.8534]
[1740771359997,0.04895066,146.7,146.68,0.04686881]
[1740771360188,13.12,146.75,146.68,0.04686881]
[1740771360388,0.04298615,146.7,146.68,0.04686881]
[1740771360587,13.12,146.75,146.68,0.04686881]
[1740771360795,0.05146021,146.7,146.68,0.04686881]
[1740771361097,6.8172,146.72,146.68,0.04686881]
[1740771361292,0.04777306,146.7,146.68,0.04686881]
[1740771361492,13.12,146.75,146.68,0.04686881]
[1740771361693,0.04517265,146.7,146.68,0.04686881]
[1740771361989,13.12,146.75,146.68,0.04686881]
[1740771362194,6.8183,146.69,146.68,0.04686881]
[1740771363695,13.16686143,146.7,146.68,0.04686881]
[1740771364898,6.8183,146.69,146.68,0.04686881]
[1740771365399,6.8183,146.69,146.68,6.881e-05]
[1740771368002,19.98486143,146.7,146.68,6.881e-05]
[1740771368302,13.16686143,146.7,146.68,6.881e-05]
[1740771368603,6.8183,146.69,146.68,6.881e-05]
[1740771369396,19.98496143,146.7,146.68,6.881e-05]
[1740771369598,13.16686143,146.7,146.68,6.881e-05]
[1740771370004,6.8183,146.69,146.68,6.881e-05]
[1740771370601,13.16686143,146.7,146.68,6.881e-05]
[1740771370901,0.04686143,146.7,146.68,6.881e-05]
[1740771371105,0.04686143,146.7,146.68,6.81836881]
[1740771371309,0.04686143,146.7,146.69,1.7379]
[1740771371603,0.04686143,146.7,146.68,6.881e-05]
[1740771372005,13.12,146.75,146.68,6.881e-05]
[1740771372905,6.817,146.72,146.69,6.8181]
[1740771373106,6.817,146.72,146.69,10.4326]
[1740771373303,0.050581,146.72,146.68,6.881e-05]
[1740771374007,6.8183,146.69,146.68,6.881e-05]
[1740771375905,13.12,146.7,146.68,6.881e-05]
[1740771376798,0.050581,146.72,146.69,6.818]
[1740771377000,0.050581,146.72,146.68,6.881e-05]
[1740771377400,1.8167,146.81,146.68,6.881e-05]
[1740771377600,13.12,146.79,146.67,1.7302]
[1740771377999,13.12,146.78,146.67,1.7302]
[1740771378403,1.9114,146.77,146.67,1.7302]
[1740771378710,0.0489562,146.74,146.71,0.04900165]
[1740771379108,6.8649562,146.74,146.71,0.04900165]
[1740771379310,0.0489562,146.74,146.71,0.04900165]
[1740771379710,6.8169,146.72,146.71,0.04900165]
[1740771379909,13.12,146.73,146.71,0.04900165]
[1740771380113,0.0489562,146.74,146.71,0.04900165]
[1740771380705,0.0489562,146.74,146.73,6.8164]
[1740771381012,0.0489562,146.74,146.71,0.04900165]
[1740771381211,0.0489562,146.74,146.71,6.86600165]
[1740771381604,0.0489562,146.74,146.71,0.04900165]
[1740771381807,0.0489562,146.74,146.73,6.8164]
[1740771382010,13.12,146.81,146.71,0.04900165]
[1740771382213,231.34,146.83,146.71,0.04900165]
[1740771382513,6.8125,146.82,146.77,6.8143]
[1740771382914,6.8123,146.82,146.77,6.8143]
[1740771383107,0.05126429,146.81,146.78,0.04727993]
[1740771383616,6.8136,146.79,146.78,0.04727993]
[1740771384913,6.8133,146.8,146.78,0.04727993]
[1740771385112,0.05126429,146.81,146.78,0.04727993]
[1740771385717,6.8136,146.79,146.78,0.04727993]
[1740771386214,0.05126429,146.81,146.78,0.04727993]
[1740771387515,13.12,146.8,146.78,0.04727993]
[1740771388012,19.9335,146.8,146.78,0.04727993]
[1740771388316,13.12,146.8,146.78,0.04727993]
[1740771388516,6.8136,146.79,146.78,0.04727993]
[1740771388720,13.12,146.8,146.7,1.7857]
[1740771388914,1.8916,146.78,146.7,1.7857]
[1740771389309,6.8158,146.75,146.7,1.7857]
[1740771389509,13.12,146.75,146.68,3.6105]
[1740771389917,13.12,146.75,146.7,0.04362322]
[1740771389918,0.0471711,146.73,146.7,0.04362322]
[1740771394313,0.0471711,146.73,146.72,6.8169]
[1740771394518,16.8526,146.83,146.71,5.5497]
[1740771395018,10.5447,146.83,146.78,6.8137]
[1740771395217,10.5447,146.83,146.71,5.5497]
[1740771395415,28.15445305,146.84,146.71,197.5497]
[1740771395622,28.15445305,146.84,146.8,6.8132]
[1740771395821,28.15445305,146.84,146.75,13.12]
[1740771396023,6.85878507,146.83,146.81,0.05243796]
[1740771396226,6.85878507,146.83,146.78,6.8137]
[1740771396427,6.85878507,146.83,146.81,0.04747454]
[1740771397019,0.04698507,146.83,146.81,0.04747454]
[1740771398228,6.8122,146.82,146.81,0.04747454]
[1740771400925,6.8132,146.8,146.74,6.8156]
[1740771401930,0.04876017,146.78,146.76,0.05136811]
[1740771402630,6.8146,146.77,146.76,0.05136811]
[1740771403230,0.04876017,146.78,146.76,0.05136811]
[1740771403732,6.86296017,146.78,146.76,0.05136811]
[1740771403931,0.04876017,146.78,146.76,0.05136811]
[1740771404335,6.8146,146.77,146.76,0.05136811]
[1740771406132,6.8169,146.72,146.67,3.7104]
[1740771406335,13.12,146.79,146.67,3.7104]
[1740771406630,13.12,146.79,146.67,1.8298]
[1740771406827,6.8158,146.75,146.67,1.8298]
[1740771407034,13.12,146.79,146.67,1.8298]
[1740771407427,0.0495547,146.74,146.72,0.04946765]
[1740771407634,13.12,146.79,146.72,0.04946765]
[1740771407830,0.05188962,146.74,146.72,0.04946765]
[1740771408031,0.04969172,146.74,146.72,0.04946765]
[1740771409341,6.86599172,146.74,146.72,0.04946765]
[1740771409532,0.04969172,146.74,146.72,0.04946765]
[1740771410432,6.8164,146.73,146.72,0.04946765]
[1740771412832,6.8186,146.69,146.64,1.8806]
[1740771413034,1.8226,146.73,146.64,1.8806]
[1740771413836,6.8195,146.67,146.62,2.17347]
[1740771414038,13.12,146.69,146.67,0.04837979]
[1740771414239,13.12,146.69,146.62,2.17347]
[1740771414435,6.8196,146.67,146.62,2.17347]
[1740771414643,13.12,146.69,146.64,0.04950411]
[1740771414833,0.04811393,146.66,146.64,0.04950411]
[1740771418239,0.04811393,146.66,146.65,6.8201]
[1740771418647,14.9426,146.73,146.64,0.04950411]
[1740771418841,14.9426,146.73,146.63,13.12]
[1740771419047,14.9426,146.73,146.69,6.818]
[1740771419346,218.12,146.74,146.63,13.12]
[1740771419543,218.12,146.74,146.69,6.8179]
[1740771419747,0.04893105,146.7,146.69,6.8179]
[1740771419947,218.12,146.74,146.63,13.12]
[1740771420149,0.04324167,146.71,146.68,0.04951759]
[1740771421443,6.8183,146.69,146.68,0.04951759]
[1740771422150,13.16324167,146.71,146.68,0.04951759]
[1740771422558,6.8183,146.69,146.68,0.04951759]
[1740771423762,13.16324167,146.71,146.68,0.04951759]
[1740771424258,13.16324167,146.71,146.62,2.17347]
[1740771424456,13.12,146.71,146.62,2.17347]
[1740771425554,0.04900129,146.68,146.65,0.05000906]
[1740771428060,6.8196,146.67,146.65,0.05000906]
[1740771428262,0.04900129,146.68,146.65,0.05000906]
[1740771428763,0.04900129,146.68,146.65,6.87000906]
[1740771429262,0.04900129,146.68,146.65,0.05000906]
[1740771430353,0.04900129,146.68,146.66,6.8196]
[1740771430762,0.04900129,146.68,146.65,0.05000906]
[1740771431262,6.8192,146.67,146.65,0.05000906]
[1740771431460,13.16900129,146.68,146.65,0.05000906]
[1740771431962,6.8197,146.66,146.65,0.05000906]
[1740771433358,13.16900129,146.68,146.62,0.34277]
[1740771433563,6.8211,146.63,146.62,0.34277]
[1740771436260,0.04485343,146.64,146.62,0.34277]
[1740771438560,6.86555343,146.64,146.62,0.34277]
[1740771438762,0.04485343,146.64,146.62,0.34277]
[1740771438961,1.9178,146.71,146.62,0.34277]
[1740771439164,13.12,146.72,146.62,0.34277]
[1740771439863,1.8229,146.73,146.67,6.8189]
[1740771439864,6.8174,146.71,146.67,6.8189]
[1740771440160,6.8174,146.71,146.68,0.04995913]
[1740771440358,0.05188748,146.7,146.68,0.04995913]
[1740771440962,13.12,146.78,146.68,3.44995913]
[1740771441259,74.7653446,146.8,146.69,14.9242]
[1740771441464,246.41445305,146.81,146.69,14.9242]
[1740771441759,28.15445305,146.81,146.69,206.9242]
[1740771442156,1.848e-05,146.76,146.74,0.04458849]
[1740771442357,28.15445305,146.81,146.75,13.12]
[1740771442562,28.15445305,146.81,146.76,1.856]
[1740771442967,19.50815305,146.81,146.76,1.856]
[1740771443368,0.05109059,146.8,146.77,0.05084379]